[Event "Early-Titled-Tuesday-Blitz-May-14-2024"]
[Site "Chess.com"]
[Date "2024.05.14"]
[Round "4"]
[White "rionelG"]
[Black "Resourchess"]
[Result "1/2-1/2"]
[WhiteElo "2272"]
[BlackElo "2404"]
[TimeControl "180+1"]
[EndTime "8:42:11 PDT"]
[Termination "Game drawn by repetition"]

1. e4 {[%clk 0:03:00.9]} 1... d6 {[%clk 0:02:59.3]} 2. d4 {[%clk 0:02:59.4]}
2... g6 {[%clk 0:02:59.5]} 3. Bd3 {[%clk 0:02:58.7]} 3... Bg7 {[%clk 0:02:59.4]}
4. c3 {[%clk 0:02:58.8]} 4... Nf6 {[%clk 0:02:58.3]} 5. h3 {[%clk 0:02:57.8]}
5... O-O {[%clk 0:02:57.2]} 6. Nf3 {[%clk 0:02:55.2]} 6... c5 {[%clk 0:02:55]}
7. O-O {[%clk 0:02:54.3]} 7... Nc6 {[%clk 0:02:54.4]} 8. Re1 {[%clk 0:02:52.8]}
8... e5 {[%clk 0:02:40.6]} 9. dxe5 {[%clk 0:02:38.1]} 9... dxe5 {[%clk 0:02:38]}
10. Be3 {[%clk 0:02:23.6]} 10... Qe7 {[%clk 0:02:32.9]} 11. Qc2 {[%clk
0:02:21.2]} 11... h6 {[%clk 0:02:29.4]} 12. Nbd2 {[%clk 0:02:12.5]} 12... Be6
{[%clk 0:02:27.6]} 13. Nf1 {[%clk 0:02:10.9]} 13... Kh7 {[%clk 0:02:05.4]} 14.
Rad1 {[%clk 0:02:10.4]} 14... a6 {[%clk 0:02:02]} 15. Ng3 {[%clk 0:02:00.6]}
15... b5 {[%clk 0:01:57.5]} 16. Bf1 {[%clk 0:01:59.3]} 16... Rad8 {[%clk
0:01:55.4]} 17. b3 {[%clk 0:01:57]} 17... Rxd1 {[%clk 0:01:14.3]} 18. Rxd1
{[%clk 0:01:57.9]} 18... Ne8 {[%clk 0:01:08.3]} 19. a4 {[%clk 0:01:55.1]} 19...
Nc7 {[%clk 0:01:03.9]} 20. axb5 {[%clk 0:01:48.2]} 20... axb5 {[%clk 0:01:04.8]}
21. Ra1 {[%clk 0:01:32.7]} 21... Rd8 {[%clk 0:01:01]} 22. Be2 {[%clk 0:01:25.5]}
22... c4 {[%clk 0:00:46.3]} 23. bxc4 {[%clk 0:01:23.9]} 23... Bxc4 {[%clk
0:00:44.1]} 24. Nh2 {[%clk 0:01:05.4]} 24... Bxe2 {[%clk 0:00:38.5]} 25. Nxe2
{[%clk 0:01:06.3]} 25... Ne6 {[%clk 0:00:36.9]} 26. Rd1 {[%clk 0:00:54.4]} 26...
b4 {[%clk 0:00:32.3]} 27. Rxd8 {[%clk 0:00:50.7]} 27... Qxd8 {[%clk 0:00:29]}
28. cxb4 {[%clk 0:00:49.3]} 28... Nxb4 {[%clk 0:00:29.2]} 29. Qd2 {[%clk
0:00:43]} 29... Qa5 {[%clk 0:00:26.1]} 30. Nf1 {[%clk 0:00:37.6]} 30... h5
{[%clk 0:00:24.2]} 31. f3 {[%clk 0:00:35.9]} 31... Qa4 {[%clk 0:00:24]} 32. Nc3
{[%clk 0:00:30.5]} 32... Qb3 {[%clk 0:00:22.9]} 33. Nd5 {[%clk 0:00:20.2]} 33...
Nc2 {[%clk 0:00:21]} 34. Bf2 {[%clk 0:00:18.3]} 34... Ncd4 {[%clk 0:00:19.6]}
35. Qe3 {[%clk 0:00:14.4]} 35... Qd1 {[%clk 0:00:17.8]} 36. Qe1 {[%clk
0:00:12.7]} 36... Qb3 {[%clk 0:00:14.7]} 37. Qe3 {[%clk 0:00:12.4]} 37... Qa2
{[%clk 0:00:13.7]} 38. Kh2 {[%clk 0:00:11.5]} 38... Bh6 {[%clk 0:00:12.6]} 39.
Qe1 {[%clk 0:00:10.4]} 39... Nf4 {[%clk 0:00:10.4]} 40. Nxf4 {[%clk 0:00:09.6]}
40... Bxf4+ {[%clk 0:00:10.3]} 41. Kg1 {[%clk 0:00:09.7]} 41... Ne2+ {[%clk
0:00:08.9]} 42. Kh1 {[%clk 0:00:10.1]} 42... Qc2 {[%clk 0:00:08.7]} 43. Be3
{[%clk 0:00:09.4]} 43... Bxe3 {[%clk 0:00:04.7]} 44. Nxe3 {[%clk 0:00:09.7]}
44... Qd3 {[%clk 0:00:04.4]} 45. Qf2 {[%clk 0:00:09.4]} 45... Nf4 {[%clk
0:00:02.8]} 46. Kh2 {[%clk 0:00:06.4]} 46... Qb1 {[%clk 0:00:03.2]} 47. Nf1
{[%clk 0:00:06]} 47... Qd3 {[%clk 0:00:03.4]} 48. Ng3 {[%clk 0:00:06]} 48... Qd6
{[%clk 0:00:02.6]} 49. Nf1 {[%clk 0:00:06.4]} 49... Qe6 {[%clk 0:00:02.1]} 50.
Ng3 {[%clk 0:00:06.6]} 50... Qd6 {[%clk 0:00:01.9]} 51. Nf1 {[%clk 0:00:06.1]}
51... Qe6 {[%clk 0:00:02]} 52. Kg1 {[%clk 0:00:05.9]} 52... g5 {[%clk
0:00:01.9]} 53. Ng3 {[%clk 0:00:04.8]} 53... Qc4 {[%clk 0:00:01.8]} 54. Nf1
{[%clk 0:00:04.7]} 54... Kg6 {[%clk 0:00:02.2]} 55. Kh2 {[%clk 0:00:05.1]} 55...
h4 {[%clk 0:00:02.7]} 56. Ne3 {[%clk 0:00:04.3]} 56... Qc1 {[%clk 0:00:02.4]}
57. Nf5 {[%clk 0:00:03.3]} 57... Nd3 {[%clk 0:00:02]} 58. Qe2 {[%clk 0:00:02.9]}
58... Qf4+ {[%clk 0:00:01.5]} 59. Kg1 {[%clk 0:00:02.8]} 59... Qc1+ {[%clk
0:00:01.7]} 60. Kh2 {[%clk 0:00:03.1]} 60... Qf4+ {[%clk 0:00:02.1]} 61. Kg1
{[%clk 0:00:03.7]} 61... Qc1+ {[%clk 0:00:02.3]} 62. Kh2 {[%clk 0:00:04.1]}
1/2-1/2

[Event "Early-Titled-Tuesday-Blitz-May-14-2024"]
[Site "Chess.com"]
[Date "2024.05.14"]
[Round "4"]
[White "AnaKuchava"]
[Black "chess_blitz00"]
[Result "0-1"]
[WhiteElo "2201"]
[BlackElo "2475"]
[TimeControl "180+1"]
[EndTime "8:42:12 PDT"]
[Termination "chess_blitz00 won on time"]

1. d4 {[%clk 0:02:58.6]} 1... d6 {[%clk 0:03:00.9]} 2. Nf3 {[%clk 0:02:57.1]}
2... Bg4 {[%clk 0:03:00.1]} 3. c4 {[%clk 0:02:55.8]} 3... Nc6 {[%clk 0:02:59.7]}
4. Nc3 {[%clk 0:02:55.8]} 4... e5 {[%clk 0:02:59.6]} 5. d5 {[%clk 0:02:55.4]}
5... Bxf3 {[%clk 0:02:58.2]} 6. exf3 {[%clk 0:02:53.9]} 6... Nd4 {[%clk
0:02:58.3]} 7. Be3 {[%clk 0:02:51.4]} 7... Nf5 {[%clk 0:02:55.2]} 8. Bd3 {[%clk
0:02:49.7]} 8... Nxe3 {[%clk 0:02:55.4]} 9. fxe3 {[%clk 0:02:50.6]} 9... g6
{[%clk 0:02:50.3]} 10. O-O {[%clk 0:02:42.6]} 10... Bh6 {[%clk 0:02:50.8]} 11.
f4 {[%clk 0:02:37.1]} 11... Qe7 {[%clk 0:02:38.5]} 12. Qf3 {[%clk 0:02:27.6]}
12... O-O-O {[%clk 0:02:31.3]} 13. Rae1 {[%clk 0:01:42.5]} 13... f5 {[%clk
0:02:28]} 14. fxe5 {[%clk 0:01:39]} 14... dxe5 {[%clk 0:02:19.3]} 15. e4 {[%clk
0:01:38.1]} 15... f4 {[%clk 0:02:19.5]} 16. a3 {[%clk 0:01:32.3]} 16... Kb8
{[%clk 0:02:19.8]} 17. b4 {[%clk 0:01:32.3]} 17... Nf6 {[%clk 0:02:20.1]} 18. c5
{[%clk 0:01:29]} 18... g5 {[%clk 0:02:20.3]} 19. Qd1 {[%clk 0:01:27.9]} 19... g4
{[%clk 0:02:20.3]} 20. Qa4 {[%clk 0:01:22.1]} 20... c6 {[%clk 0:01:35.5]} 21. d6
{[%clk 0:01:19.2]} 21... Qg7 {[%clk 0:01:31.5]} 22. b5 {[%clk 0:01:17.8]} 22...
Qd7 {[%clk 0:01:19.9]} 23. Rb1 {[%clk 0:01:14.1]} 23... Rc8 {[%clk 0:01:02.9]}
24. Rfc1 {[%clk 0:00:30.4]} 24... f3 {[%clk 0:00:58.8]} 25. Rc2 {[%clk
0:00:30.6]} 25... Be3+ {[%clk 0:00:56.9]} 26. Kh1 {[%clk 0:00:28.7]} 26... Bxc5
{[%clk 0:00:49.9]} 27. bxc6 {[%clk 0:00:26.6]} 27... Qxc6 {[%clk 0:00:40.2]} 28.
Nb5 {[%clk 0:00:18.7]} 28... Nh5 {[%clk 0:00:09.9]} 29. Rbc1 {[%clk 0:00:12.2]}
29... fxg2+ {[%clk 0:00:09.4]} 30. Kxg2 {[%clk 0:00:13.1]} 30... Nf4+ {[%clk
0:00:09.7]} 31. Kg3 {[%clk 0:00:12.5]} 31... Nxd3 {[%clk 0:00:10.6]} 32. Rxc5
{[%clk 0:00:11.5]} 32... Qb6 {[%clk 0:00:04.8]} 33. Rxc8+ {[%clk 0:00:07.9]}
33... Rxc8 {[%clk 0:00:05.7]} 34. Rxc8+ {[%clk 0:00:07.7]} 34... Kxc8 {[%clk
0:00:06.6]} 35. Nxa7+ {[%clk 0:00:07.6]} 35... Kd8 {[%clk 0:00:07.3]} 36. Qc4
{[%clk 0:00:03.9]} 36... Qe3+ {[%clk 0:00:06.7]} 37. Kh4 {[%clk 0:00:03.7]}
37... Qf2+ {[%clk 0:00:06.5]} 38. Kh5 {[%clk 0:00:03.6]} 38... Nf4+ {[%clk
0:00:06.4]} 39. Kg5 {[%clk 0:00:03.1]} 39... Nh3+ {[%clk 0:00:06.3]} 40. Kh6
{[%clk 0:00:02.6]} 40... Qf6+ {[%clk 0:00:05.9]} 41. Kxh7 {[%clk 0:00:03.2]}
41... Ng5+ {[%clk 0:00:06.5]} 42. Kg8 {[%clk 0:00:02.2]} 42... Qf7+ {[%clk
0:00:07]} 43. Qxf7 {[%clk 0:00:01.6]} 43... Nxf7 {[%clk 0:00:07.3]} 44. Kxf7
{[%clk 0:00:02.5]} 44... Kd7 {[%clk 0:00:07.4]} 45. Nb5 {[%clk 0:00:01.1]} 45...
Kc6 {[%clk 0:00:06.3]} 46. Ke7 {[%clk 0:00:01.3]} 46... g3 {[%clk 0:00:04.4]}
47. d7 {[%clk 0:00:02.2]} 47... gxh2 {[%clk 0:00:02.7]} 48. d8=Q {[%clk
0:00:03.1]} 48... h1=Q {[%clk 0:00:03.6]} 49. Qd6+ {[%clk 0:00:02.7]} 49... Kxb5
{[%clk 0:00:04.2]} 50. Qd5+ {[%clk 0:00:02.2]} 50... Ka6 {[%clk 0:00:04.5]} 51.
Qxe5 {[%clk 0:00:03.1]} 51... b5 {[%clk 0:00:04.4]} 52. Qd6+ {[%clk 0:00:02.8]}
52... Ka5 {[%clk 0:00:04.3]} 53. Qb4+ {[%clk 0:00:03.4]} 53... Kb6 {[%clk
0:00:04.6]} 54. Kd6 {[%clk 0:00:03]} 54... Qh6+ {[%clk 0:00:04.3]} 55. Kd5
{[%clk 0:00:03.4]} 55... Qg5+ {[%clk 0:00:04.3]} 56. e5 {[%clk 0:00:03.4]} 56...
Qg8+ {[%clk 0:00:04.6]} 57. e6 {[%clk 0:00:03.2]} 57... Qd8+ {[%clk 0:00:05]}
58. Ke5 {[%clk 0:00:03.5]} 58... Qg5+ {[%clk 0:00:04.8]} 59. Kd6 {[%clk
0:00:03.6]} 59... Qf6 {[%clk 0:00:02.9]} 60. Qc5+ {[%clk 0:00:03]} 60... Ka5
{[%clk 0:00:02.5]} 61. Qb4+ {[%clk 0:00:02.8]} 61... Kb6 {[%clk 0:00:02.8]} 62.
Qc5+ {[%clk 0:00:00.8]} 62... Ka6 {[%clk 0:00:02.5]} 63. Qa7+ {[%clk 0:00:01.4]}
63... Kxa7 {[%clk 0:00:02.7]} 0-1

[Event "Early-Titled-Tuesday-Blitz-May-14-2024"]
[Site "Chess.com"]
[Date "2024.05.14"]
[Round "4"]
[White "FXDon77"]
[Black "jaskol95"]
[Result "1-0"]
[WhiteElo "2874"]
[BlackElo "2528"]
[TimeControl "180+1"]
[EndTime "8:42:14 PDT"]
[Termination "FXDon77 won by checkmate"]

1. e4 {[%clk 0:03:00.9]} 1... e6 {[%clk 0:02:59.3]} 2. d3 {[%clk 0:02:59.6]}
2... c5 {[%clk 0:02:57.3]} 3. g3 {[%clk 0:02:58.2]} 3... Nc6 {[%clk 0:02:56.4]}
4. Bg2 {[%clk 0:02:58.6]} 4... Nf6 {[%clk 0:02:55.1]} 5. Nd2 {[%clk 0:02:57.6]}
5... g6 {[%clk 0:02:51.1]} 6. Ngf3 {[%clk 0:02:54.2]} 6... Bg7 {[%clk
0:02:51.2]} 7. O-O {[%clk 0:02:54.3]} 7... O-O {[%clk 0:02:50.8]} 8. c3 {[%clk
0:02:45.3]} 8... b6 {[%clk 0:02:08.1]} 9. Re1 {[%clk 0:02:43.9]} 9... Bb7 {[%clk
0:02:07.8]} 10. a3 {[%clk 0:02:20.4]} 10... d6 {[%clk 0:02:08]} 11. d4 {[%clk
0:02:19.2]} 11... cxd4 {[%clk 0:02:03.7]} 12. cxd4 {[%clk 0:02:19.1]} 12... Rc8
{[%clk 0:02:04.4]} 13. b4 {[%clk 0:02:08.3]} 13... Qd7 {[%clk 0:01:28.6]} 14.
Bb2 {[%clk 0:02:07]} 14... Rfd8 {[%clk 0:01:28.5]} 15. Rc1 {[%clk 0:02:05.6]}
15... Ne7 {[%clk 0:01:28]} 16. Qe2 {[%clk 0:01:56.3]} 16... Rxc1 {[%clk
0:01:27.3]} 17. Rxc1 {[%clk 0:01:56.2]} 17... Rc8 {[%clk 0:01:27.5]} 18. Rxc8+
{[%clk 0:01:42.2]} 18... Qxc8 {[%clk 0:01:13.8]} 19. Ne1 {[%clk 0:01:42.5]}
19... d5 {[%clk 0:01:10.2]} 20. e5 {[%clk 0:01:40.5]} 20... Nd7 {[%clk
0:01:07.3]} 21. Bf1 {[%clk 0:01:32.1]} 21... Bh6 {[%clk 0:00:45.3]} 22. b5
{[%clk 0:01:24.6]} 22... Nb8 {[%clk 0:00:38.3]} 23. a4 {[%clk 0:01:21.8]} 23...
a5 {[%clk 0:00:37.4]} 24. f4 {[%clk 0:01:13.3]} 24... Nd7 {[%clk 0:00:36.8]} 25.
Qf3 {[%clk 0:01:03.5]} 25... Bf8 {[%clk 0:00:37.3]} 26. Bd3 {[%clk 0:01:03.4]}
26... Nf5 {[%clk 0:00:36.5]} 27. g4 {[%clk 0:01:00]} 27... Ne7 {[%clk
0:00:26.9]} 28. Nc2 {[%clk 0:00:53.2]} 28... Bh6 {[%clk 0:00:26.6]} 29. h4
{[%clk 0:00:49]} 29... Nf8 {[%clk 0:00:25.9]} 30. Ne3 {[%clk 0:00:48.2]} 30...
Qc7 {[%clk 0:00:24.9]} 31. Kf2 {[%clk 0:00:35.7]} 31... Bc8 {[%clk 0:00:25.1]}
32. Ke2 {[%clk 0:00:35.6]} 32... Bg7 {[%clk 0:00:25.5]} 33. Ba3 {[%clk
0:00:32.7]} 33... Qd8 {[%clk 0:00:18.1]} 34. Qh1 {[%clk 0:00:27.2]} 34... Nd7
{[%clk 0:00:18]} 35. Qc1 {[%clk 0:00:26.3]} 35... Bf8 {[%clk 0:00:18.7]} 36. Bd6
{[%clk 0:00:23.7]} 36... Bb7 {[%clk 0:00:18.1]} 37. Nb3 {[%clk 0:00:19]} 37...
Qc8 {[%clk 0:00:18.3]} 38. Qxc8 {[%clk 0:00:14.2]} 38... Nxc8 {[%clk 0:00:18.7]}
39. Bxf8 {[%clk 0:00:13.9]} 39... Kxf8 {[%clk 0:00:18.9]} 40. f5 {[%clk
0:00:14.1]} 40... Ke7 {[%clk 0:00:18.2]} 41. f6+ {[%clk 0:00:09.9]} 41... Kf8
{[%clk 0:00:18.5]} 42. Kf3 {[%clk 0:00:10.4]} 42... Ke8 {[%clk 0:00:18.7]} 43.
Kf4 {[%clk 0:00:10.3]} 43... Kf8 {[%clk 0:00:19.3]} 44. Kg5 {[%clk 0:00:10.1]}
44... Kg8 {[%clk 0:00:19.7]} 45. Kh6 {[%clk 0:00:10.2]} 45... Nf8 {[%clk
0:00:18.2]} 46. Nd2 {[%clk 0:00:08.1]} 46... Na7 {[%clk 0:00:18.4]} 47. Nf3
{[%clk 0:00:07.8]} 47... Nc8 {[%clk 0:00:18.7]} 48. Ng5 {[%clk 0:00:07.8]} 48...
Na7 {[%clk 0:00:17.2]} 49. h5 {[%clk 0:00:08]} 49... Nc8 {[%clk 0:00:16.8]} 50.
Ng2 {[%clk 0:00:08.3]} 50... Na7 {[%clk 0:00:16.4]} 51. Nf4 {[%clk 0:00:08.9]}
51... Nc8 {[%clk 0:00:16.4]} 52. hxg6 {[%clk 0:00:08]} 52... hxg6 {[%clk
0:00:13.6]} 53. Bc2 {[%clk 0:00:07.4]} 53... Na7 {[%clk 0:00:13.5]} 54. Nxf7
{[%clk 0:00:04.6]} 54... Kxf7 {[%clk 0:00:13.4]} 55. Nxg6 {[%clk 0:00:05.3]}
55... Nd7 {[%clk 0:00:12.2]} 56. g5 {[%clk 0:00:05.1]} 56... Nc8 {[%clk
0:00:11.8]} 57. Kh7 {[%clk 0:00:05.2]} 57... Nf8+ {[%clk 0:00:11.5]} 58. Nxf8
{[%clk 0:00:05.4]} 58... Kxf8 {[%clk 0:00:12.1]} 59. g6 {[%clk 0:00:06.1]} 59...
Ne7 {[%clk 0:00:12.4]} 60. fxe7+ {[%clk 0:00:06]} 60... Kxe7 {[%clk 0:00:12.9]}
61. g7 {[%clk 0:00:06.7]} 61... Kd7 {[%clk 0:00:13.5]} 62. g8=Q {[%clk
0:00:07.2]} 62... Kc7 {[%clk 0:00:14.4]} 63. Qf7+ {[%clk 0:00:07.6]} 63... Kb8
{[%clk 0:00:15.3]} 64. Qxe6 {[%clk 0:00:08.1]} 64... Ka7 {[%clk 0:00:15.7]} 65.
Qd6 {[%clk 0:00:08.4]} 65... Bc8 {[%clk 0:00:16]} 66. Qc7+ {[%clk 0:00:08.5]}
66... Bb7 {[%clk 0:00:15.8]} 67. Bb3 {[%clk 0:00:08.9]} 67... Ka8 {[%clk
0:00:16.2]} 68. e6 {[%clk 0:00:09.5]} 68... Bc8 {[%clk 0:00:15.4]} 69. Qxc8+
{[%clk 0:00:09.7]} 69... Ka7 {[%clk 0:00:16.2]} 70. Qc7+ {[%clk 0:00:10.4]}
70... Ka8 {[%clk 0:00:16.6]} 71. Bxd5# {[%clk 0:00:11.3]} 1-0

[Event "Early-Titled-Tuesday-Blitz-May-14-2024"]
[Site "Chess.com"]
[Date "2024.05.14"]
[Round "4"]
[White "bubeliang"]
[Black "balack95"]
[Result "1/2-1/2"]
[WhiteElo "2836"]
[BlackElo "2516"]
[TimeControl "180+1"]
[EndTime "8:42:15 PDT"]
[Termination "Game drawn - insufficient material"]

1. a4 {[%clk 0:03:00.9]} 1... g6 {[%clk 0:02:58]} 2. Ra3 {[%clk 0:03:01.8]} 2...
Bg7 {[%clk 0:02:58.6]} 3. g3 {[%clk 0:03:01.3]} 3... c5 {[%clk 0:02:57.5]} 4.
Bg2 {[%clk 0:03:01]} 4... d5 {[%clk 0:02:58.1]} 5. Nf3 {[%clk 0:03:00.9]} 5...
Nf6 {[%clk 0:02:58.5]} 6. O-O {[%clk 0:03:01]} 6... O-O {[%clk 0:02:59.2]} 7. d3
{[%clk 0:03:00.6]} 7... Nc6 {[%clk 0:02:58]} 8. Nbd2 {[%clk 0:03:00.2]} 8... e5
{[%clk 0:02:56.1]} 9. e4 {[%clk 0:03:00.1]} 9... d4 {[%clk 0:02:55.4]} 10. Nc4
{[%clk 0:02:58.9]} 10... Bg4 {[%clk 0:02:55.9]} 11. h3 {[%clk 0:02:58.2]} 11...
Bxf3 {[%clk 0:02:56.4]} 12. Bxf3 {[%clk 0:02:58.5]} 12... h5 {[%clk 0:02:54.4]}
13. Kg2 {[%clk 0:02:56.2]} 13... Re8 {[%clk 0:02:54.3]} 14. Bg5 {[%clk
0:02:54.1]} 14... Qc7 {[%clk 0:02:51.8]} 15. Bxf6 {[%clk 0:02:50.8]} 15... Bxf6
{[%clk 0:02:51.7]} 16. h4 {[%clk 0:02:47.9]} 16... Kg7 {[%clk 0:02:48.4]} 17.
Rh1 {[%clk 0:02:45.7]} 17... Rh8 {[%clk 0:02:47.2]} 18. a5 {[%clk 0:02:43.8]}
18... b5 {[%clk 0:02:45.3]} 19. axb6 {[%clk 0:02:37.9]} 19... axb6 {[%clk
0:02:46.2]} 20. Qa1 {[%clk 0:02:35.9]} 20... Rxa3 {[%clk 0:02:42.2]} 21. Qxa3
{[%clk 0:02:36.8]} 21... b5 {[%clk 0:02:41]} 22. Nd2 {[%clk 0:02:30.8]} 22...
Nb4 {[%clk 0:02:38.6]} 23. Qb3 {[%clk 0:02:23.2]} 23... Ra8 {[%clk 0:02:29.5]}
24. c3 {[%clk 0:02:18.5]} 24... Nxd3 {[%clk 0:02:29.3]} 25. Qxb5 {[%clk
0:02:16.4]} 25... c4 {[%clk 0:02:27]} 26. Qxc4 {[%clk 0:02:01.2]} 26... Qxc4
{[%clk 0:02:25.6]} 27. Nxc4 {[%clk 0:02:02.1]} 27... dxc3 {[%clk 0:02:23.4]} 28.
bxc3 {[%clk 0:02:01.4]} 28... Rc8 {[%clk 0:02:23.2]} 29. Nd6 {[%clk 0:02:00.8]}
29... Rd8 {[%clk 0:02:16.3]} 30. Nb5 {[%clk 0:01:54.2]} 30... Rb8 {[%clk
0:02:09.2]} 31. c4 {[%clk 0:01:40.9]} 31... Be7 {[%clk 0:02:07.4]} 32. Rd1
{[%clk 0:01:38.3]} 32... Nc5 {[%clk 0:01:56.6]} 33. Rd5 {[%clk 0:01:35.9]} 33...
Kf6 {[%clk 0:01:46.2]} 34. Rd2 {[%clk 0:01:30.3]} 34... Rd8 {[%clk 0:01:45.9]}
35. Ra2 {[%clk 0:01:28.4]} 35... Nd3 {[%clk 0:01:44.6]} 36. Kf1 {[%clk
0:01:26.1]} 36... Bc5 {[%clk 0:01:40.9]} 37. Rd2 {[%clk 0:01:20.9]} 37... Ke7
{[%clk 0:01:41.2]} 38. Nc7 {[%clk 0:01:18]} 38... Nb4 {[%clk 0:01:30.5]} 39.
Nd5+ {[%clk 0:01:13.9]} 39... Nxd5 {[%clk 0:01:26.4]} 40. cxd5 {[%clk
0:01:14.8]} 40... Ra8 {[%clk 0:01:23.3]} 41. Rc2 {[%clk 0:01:14.4]} 41... Kd6
{[%clk 0:01:21.9]} 42. Kg2 {[%clk 0:01:04.4]} 42... Ra3 {[%clk 0:01:21]} 43. Rb2
{[%clk 0:01:01.5]} 43... Ra7 {[%clk 0:01:20.6]} 44. Be2 {[%clk 0:01:01.5]} 44...
Bd4 {[%clk 0:01:16.8]} 45. Rc2 {[%clk 0:01:01.2]} 45... Bc5 {[%clk 0:01:16.3]}
46. Bb5 {[%clk 0:01:00.6]} 46... Ra5 {[%clk 0:01:15.5]} 47. Bc6 {[%clk
0:01:00.1]} 47... Ra7 {[%clk 0:01:12.4]} 48. Rb2 {[%clk 0:00:53.1]} 48... Kc7
{[%clk 0:01:12.2]} 49. Be8 {[%clk 0:00:46.6]} 49... Kd6 {[%clk 0:00:59.7]} 50.
Kh3 {[%clk 0:00:44.8]} 50... f5 {[%clk 0:00:58.8]} 51. Bxg6 {[%clk 0:00:43.4]}
51... fxe4 {[%clk 0:00:56.9]} 52. Bxe4 {[%clk 0:00:44.3]} 52... Rf7 {[%clk
0:00:51.8]} 53. f3 {[%clk 0:00:44.2]} 53... Rg7 {[%clk 0:00:51.9]} 54. g4 {[%clk
0:00:40.9]} 54... hxg4+ {[%clk 0:00:51.3]} 55. fxg4 {[%clk 0:00:41.8]} 55... Rf7
{[%clk 0:00:51.6]} 56. g5 {[%clk 0:00:40.6]} 56... Ra7 {[%clk 0:00:52]} 57. Kg4
{[%clk 0:00:39.6]} 57... Ra3 {[%clk 0:00:51]} 58. h5 {[%clk 0:00:38.4]} 58...
Re3 {[%clk 0:00:49.8]} 59. Bf5 {[%clk 0:00:29.1]} 59... Kxd5 {[%clk 0:00:46.1]}
60. h6 {[%clk 0:00:28.3]} 60... Re1 {[%clk 0:00:37.4]} 61. Kh5 {[%clk 0:00:20]}
61... Rh1+ {[%clk 0:00:36.9]} 62. Kg6 {[%clk 0:00:19.9]} 62... e4 {[%clk
0:00:31.8]} 63. Ra2 {[%clk 0:00:13.9]} 63... e3 {[%clk 0:00:32]} 64. h7 {[%clk
0:00:13]} 64... Bd4 {[%clk 0:00:31.7]} 65. Kf7 {[%clk 0:00:09.5]} 65... Ke5
{[%clk 0:00:31.5]} 66. Ra5+ {[%clk 0:00:08.8]} 66... Kf4 {[%clk 0:00:32.1]} 67.
Ra4 {[%clk 0:00:03.7]} 67... Kxf5 {[%clk 0:00:31.2]} 68. Rxd4 {[%clk 0:00:03.9]}
68... Kxg5 {[%clk 0:00:30.6]} 69. Kg7 {[%clk 0:00:03.1]} 69... Kf5 {[%clk
0:00:29.3]} 70. Rd8 {[%clk 0:00:01.8]} 70... Kf4 {[%clk 0:00:24.7]} 71. Rd6
{[%clk 0:00:02.1]} 71... Rxh7+ {[%clk 0:00:24.1]} 72. Kxh7 {[%clk 0:00:01.8]}
72... e2 {[%clk 0:00:25]} 73. Re6 {[%clk 0:00:02.2]} 73... Kf3 {[%clk
0:00:25.5]} 74. Kg6 {[%clk 0:00:01.4]} 74... Kf2 {[%clk 0:00:26.1]} 75. Kf5
{[%clk 0:00:01.4]} 75... e1=Q {[%clk 0:00:26.5]} 76. Rxe1 {[%clk 0:00:01.3]}
76... Kxe1 {[%clk 0:00:27.4]} 1/2-1/2